Cogmind - Beta 12 @@@ ROGUE MODE // 2023.07.13 @ 08:01:43 Player: Benny Result: Destroyed by H-55 Commando with Gauss Rifle Performance ------------- Evolutions (2) 1000 Regions Visited (4) 800 Robots Destroyed (34) 170 Value Destroyed (736) 736 Prototype IDs (1) 20 Alien Tech Used (0) 0 Bonus (21) 21 TOTAL SCORE: 2747 Bonus ------- Follower Combat Kills 21 Cogmind --------- Core Integrity 0/550 Matter 93/300 Energy 100/100 System Corruption 2% Temperature Cool (9) Movement Core (50) Location -8/Materials Parts ------- > --- POWER (1) -------- (None) > --- PROPULSION (4) --- (None) > --- UTILITY (4) ------ Signal Interpreter Targeting Computer > --- WEAPON (2) ------- (None) > --- INVENTORY (5) ---- Improved Ion Engine Medium Armor Plating High-powered Tractor Beam Peak State ------------ > --- POWER ------------ Improved Ion Engine > --- PROPULSION ------- Improved Hover Unit Improved Hover Unit Improved Hover Unit Aerolev Unit > --- UTILITY ---------- Small Storage Unit Visual Processing Unit Signal Interpreter Targeting Computer > --- WEAPON ----------- Heavy Assault Rifle Autogun > --- INVENTORY -------- Light Ion Engine Aerolev Unit Aerolev Unit Improved Sensor Array Medium Armor Plating High-powered Tractor Beam Mini Grenade Launcher [Rating: 22] Favorites ----------- Power Light Ion Engine Engine Light Ion Engine Propulsion Improved Hover Unit Wheel Wheel Hover Unit Improved Hover Unit Utility Small Storage Unit Device Sensor Array Storage Small Storage Unit Processor Targeting Computer Weapon Assault Rifle Energy Gun EM Shotgun Ballistic Gun Assault Rifle Launcher Mini Grenade Launcher Special Weapon Mining Laser Build | -11 -10 -10 -9 -8 ------- Run | Jun Mat Min Mat Mat Slots Evolved 4 | . . . 2 2 Power . | . . . . . Propulsion 2 | . . . . 2 Utility 2 | . . . 2 . Weapon . | . . . . . Parts Attached 53 | 7 13 4 13 16 Power 5 | 1 2 . 1 1 Engine 5 | 1 2 . 1 1 Core . | . . . . . Reactor . | . . . . . Propulsion 11 | 2 2 . 2 5 Treads . | . . . . . Leg . | . . . . . Wheel 2 | 2 . . . . Hover 9 | . 2 . 2 5 Flight . | . . . . . Utility 9 | 2 2 . 3 2 Device 4 | 1 1 . 1 1 Storage 1 | 1 . . . . Processor 4 | . 1 . 2 1 Hackware . | . . . . . Protection . | . . . . . Artifact . | . . . . . Weapon 28 | 2 7 4 7 8 Energy Gun 1 | . . . . 1 Energy Cannon . | . . . . . Ballistic Gun 16 | 2 4 2 3 5 Ballistic Cannon . | . . . . . Launcher 8 | . 3 1 2 2 Special Weapon 3 | . . 1 2 . Impact Weapon . | . . . . . Slashing Weapon . | . . . . . Piercing Weapon . | . . . . . Special Melee Weapon . | . . . . . Unidentified Prototypes 1 | . . . . 1 Parts Lost 17 | . . . 1 16 Power 1 | . . . . 1 Propulsion 8 | . . . . 8 Utility 3 | . . . . 3 Weapon 5 | . . . 1 4 Highest Loss Streak 16 | . . . 1 16 To Critical Strikes . | . . . . . Average Slot Usage (%) 95 | . 100 100 96 72 Engine 11 | . 14 14 11 4 Wheel 1 | . 2 . . . Hover 24 | . 25 28 22 23 Device 9 | . 6 14 11 3 Storage 12 | . 14 14 11 9 Processor 11 | . 7 . 18 22 Ballistic Gun 18 | . 27 19 11 9 Special Weapon 4 | . . 7 9 . Naked Turns . | . . . . . Heaviest Build 19 | 15 15 12 14 19 Greatest Support 29 | 26 26 14 14 29 Greatest Overweight (x) 1 | 1 1 . . 1 Average Overweight (x) . | . . . . . Largest Inventory Capacity 8 | 8 8 8 8 8 Average Capacity 7 | 7 8 8 8 7 Most Carried 8 | 8 8 8 8 8 Average Carried 7 | 4 7 8 7 4 Final Capacity 8 | 8 8 8 8 5 Final Carried 8 | 7 8 8 8 3 Class Distribution -------------------- 100% | Mutant Dominant Class ---------------- Mutant | -10/Materials Mutant | -10/Mines Mutant | -9/Materials Mutant | -8/Materials Resources | -11 -10 -10 -9 -8 ----------- Run | Jun Mat Min Mat Mat Matter Collected 896 | 282 236 125 140 113 Remotely 161 | 149 . . 12 . Salvage Created 719 | 52 253 . 157 257 Parts 57 | 2 23 . 17 15 Haulers Intercepted . | . . . . . Recyclers Shooed 2 | . 2 . . . Parts Field Recycled . | . . . . . Retrieved Matter . | . . . . . Parts Self-Destructed . | . . . . . Prevented . | . . . . . Kills | -11 -10 -10 -9 -8 ------- Run | Jun Mat Min Mat Mat Combat Hostiles Destroyed 23 | . 8 . 8 7 Guns 9 | . 5 . 2 2 Cannons 1 | . . . 1 . AOE 13 | . 3 . 5 5 Classes Destroyed 8 | 1 5 . 1 1 Worker 1 | . 1 . . . Builder 2 | . . . 1 1 Tunneler 1 | . 1 . . . Recycler 3 | 1 . . . 2 Watcher 4 | . 3 . 1 . Swarmer 12 | . 3 . 6 3 Grunt 10 | . 5 . 2 3 Sentry 1 | . . . . 1 Best Kill Streak 9 | 1 6 . 4 9 Combat Bots Only 6 | . 3 . 3 6 Max Kills in Single Turn 3 | 1 3 . 2 3 Gunslinging . | . . . . . Exploded 2 | . 2 . 2 2 Melee . | . . . . . Uniques/NPCs Destroyed . | . . . . . Combat | -11 -10 -10 -9 -8 -------- Run | Jun Mat Min Mat Mat Damage Taken 1873 | . 111 13 286 1463 Core 694 | . 9 . 119 566 Absorbed by Shields . | . . . . . Core Remaining (%) 88 | 100 . 96 70 . Volleys Fired 75 | 2 28 3 25 17 Largest 2 | 2 2 1 2 2 Hottest 123 | 40 50 100 123 53 Shots Fired 127 | 4 53 3 37 30 Gun 90 | 4 47 . 16 23 Cannon . | . . . . . Launcher 18 | . 6 . 5 7 Special 19 | . . 3 16 . Kinetic 87 | 4 47 . 16 20 Thermal 19 | . . 3 16 . Explosive 18 | . 6 . 5 7 Electromagnetic 3 | . . . . 3 Robot Hit Streak 12 | 3 12 . 5 8 Robot Miss Streak 4 | . 3 . 2 4 Penetration Max . | . . . . . Secondary Targets 1 | . . . . 1 Max Gunslinging Chain 1 | . . . . 1 Shots Hit Robots 65 | 3 29 . 15 18 Core Hits 56 | 2 18 . 16 20 Critical Kills . | . . . . . Critical Parts Destroyed . | . . . . . Critical Strikes . | . . . . . Melee Attacks . | . . . . . Impact . | . . . . . Slashing . | . . . . . Piercing . | . . . . . Sneak Attacks . | . . . . . Combat Hostiles . | . . . . . Follow-up Attacks . | . . . . . Damage Inflicted 2399 | 34 846 . 565 954 Guns 776 | 34 323 . 169 250 Cannons . | . . . . . Explosions 1552 | . 523 . 348 681 Melee . | . . . . . Ramming 23 | . . . . 23 Kinetic 736 | 34 323 . 169 210 Thermal 48 | . . . 48 . Explosive 1516 | . 523 . 312 681 Electromagnetic 76 | . . . 36 40 Impact . | . . . . . Slashing . | . . . . . Piercing . | . . . . . Highest Corruption 2 | . . . . 2 Average Corruption 2 | . . . . 2 Corruption Purged . | . . . . . Corruption Blocked . | . . . . . Effects 2 | . . . . 2 Matter Fused 1 | . . . . 1 Data Loss (minor) 1 | . . . . 1 Overload Shots . | . . . . . Overflow Damage 124 | . 22 . 46 56 Projectiles . | . . . . . Explosions 124 | . 22 . 46 56 Melee . | . . . . . Knockbacks . | . . . . . Impact . | . . . . . Kinetic . | . . . . . Secondary . | . . . . . Self-Inflicted Damage 87 | . . . 38 49 Shots 4 | . . . 2 2 Rammed 1 | . . . . 1 Targets Rammed 1 | . . . . 1 Kicked . | . . . . . Crushed . | . . . . . Highest Temperature 105 | . 11 70 105 51 Average Temperature 26 | . 4 39 32 19 Received Heat Transfer 435 | . 39 . 36 360 Siege Activations . | . . . . . Robots Corrupted . | . . . . . Combat Hostiles . | . . . . . Parts Fried . | . . . . . Impact Corruptions . | . . . . . Robots Melted . | . . . . . Combat Hostiles . | . . . . . Parts Melted . | . . . . . Heat Transferred 100 | . . . 100 . Parts Sabotaged . | . . . . . Parts Stolen . | . . . . . Parts Stripped . | . . . . . Power Chain Reactions . | . . . . . Missiles Intercepted . | . . . . . Alert | -11 -10 -10 -9 -8 ------- Run | Jun Mat Min Mat Mat Peak Influence 268 | 5 219 159 236 268 Initial 99 | . 3 85 54 99 Average 104 | 2 108 118 65 210 Maximum Alert Level 1 | . 1 . 1 1 Low Security (%) 84 | 100 85 100 98 24 Level 1 15 | . 14 . 1 75 Level 2 . | . . . . . Level 3 . | . . . . . Level 4 . | . . . . . Level 5 . | . . . . . High Security . | . . . . . Max Security . | . . . . . Squads Dispatched 5 | . 3 . 1 1 Investigation 2 | . 2 . . . Extermination . | . . . . . Reinforcement 3 | . 1 . 1 1 Assault . | . . . . . Garrison . | . . . . . Intercept . | . . . . . Searches Triggered . | . . . . . Construction Impeded . | . . . . . Haulers Reinforced . | . . . . . Active Scanning Responses . | . . . . . Cargo Convoy Interrupts . | . . . . . Stealth | -11 -10 -10 -9 -8 --------- Run | Jun Mat Min Mat Mat Distress Signals 2 | . . 1 . 1 Communications Jammed . | . . . . . Distress Signals . | . . . . . Times Spotted 50 | . 16 3 16 15 Peak Tracking Total 8 | . 4 3 8 6 Tactical Retreats 2 | . 2 . . . Traps | -11 -10 -10 -9 -8 ------- Run | Jun Mat Min Mat Mat Traps Triggered 1 | . 1 . . . Indirectly . | . . . . . Trap Hack Attempts . | . . . . . Triggered . | . . . . . Disarmed . | . . . . . Reprogrammed . | . . . . . Reused . | . . . . . Traps Extracted . | . . . . . Installed . | . . . . . Triggered . | . . . . . Machines | -11 -10 -10 -9 -8 ---------- Run | Jun Mat Min Mat Mat Machines Disabled 5 | . 2 . 3 . Max in Single Turn 2 | . 1 . 2 . Machines Repaired . | . . . . . Machines Sabotaged . | . . . . . Overloaded Fab Kills . | . . . . . Hacking | -11 -10 -10 -9 -8 --------- Run | Jun Mat Min Mat Mat Machines Accessed 15 | . 8 . 6 1 Terminals 11 | . 5 . 6 . Fabricators . | . . . . . Repair Stations 2 | . 1 . . 1 Recycling Units 2 | . 2 . . . Scanalyzers . | . . . . . Garrison Access . | . . . . . Total Hacks 40 | . 21 . 17 2 Successful 17 | . 7 . 9 1 Failed 23 | . 14 . 8 1 Catastrophic 1 | . . . 1 . Database Lockouts . | . . . . . Manual 3 | . . . 3 . Terminals 30 | . 13 . 17 . Fabricators . | . . . . . Repair Stations 5 | . 3 . . 2 Recycling Units 5 | . 5 . . . Scanalyzers . | . . . . . Garrison Access . | . . . . . Terminal Hacks 14 | . 5 . 9 . Robot Analysis 2 | . 1 . 1 . Emergency Access Points 3 | . 2 . 1 . Unreport Threat 1 | . . . 1 . Locate Traps 2 | . 1 . 1 . Reinforcement Status 2 | . . . 2 . Assault Status 1 | . . . 1 . Recall Investigation 1 | . 1 . . . Zone Layout 2 | . . . 2 . Fabricator Hacks . | . . . . . Repair Station Hacks 2 | . 1 . . 1 Scan Component 2 | . 1 . . 1 Recycling Unit Hacks 1 | . 1 . . . Retrieve Components 1 | . 1 . . . Scanalyzer . | . . . . . Garrison Access Hacks . | . . . . . Unauthorized Hacks . | . . . . . Terminals . | . . . . . Fabricators . | . . . . . Repair Stations . | . . . . . Recycling Units . | . . . . . Scanalyzers . | . . . . . Garrison Access . | . . . . . Data Cores Recovered . | . . . . . Used . | . . . . . Hacking Detections 15 | . 8 . 6 1 Full Trace Events 1 | . 1 . . . Feedback Events . | . . . . . Feedback Blocked . | . . . . . Robot Schematics Acquired . | . . . . . Robots Built . | . . . . . Authchips . | . . . . . Time . | . . . . . Total Robot Build Rating . | . . . . . Part Schematics Acquired . | . . . . . Parts Built . | . . . . . Authchips . | . . . . . Time . | . . . . . Total Part Build Rating . | . . . . . Parts Repaired . | . . . . . Time . | . . . . . Parts Recycled . | . . . . . Recycled Matter . | . . . . . Retrieved Matter . | . . . . . Retrieved Components 1 | . 1 . . . Parts Scanalyzed . | . . . . . Part Schematics Acquired . | . . . . . Parts Damaged . | . . . . . Bothacking | -11 -10 -10 -9 -8 ------------ Run | Jun Mat Min Mat Mat Used RIF Installer . | . . . . . Robots Hacked . | . . . . . Non-combat . | . . . . . Combat . | . . . . . Robot Hacks Applied . | . . . . . Relay Couplers Released . | . . . . . Fabnet Peak Effective % . | . . . . . Robots Rewired . | . . . . . Allies Hacked . | . . . . . Hacks Repelled . | . . . . . Allies | -11 -10 -10 -9 -8 -------- Run | Jun Mat Min Mat Mat Total Allies 1 | . . 1 . . Largest Group 1 | . . 1 . . Highest-Rated Group 31 | . . 31 . . Highest-Rated Ally 31 | . . 31 . . Total Orders . | . . . . . Ally Attacks 6 | . . 6 . . Total Damage 127 | . . 127 . . Kills 3 | . . 3 . . Allies Corrupted . | . . . . . Allies Melted . | . . . . . Intel | -11 -10 -10 -9 -8 ------- Run | Jun Mat Min Mat Mat Robot Analysis Total 2 | . 1 . 1 . Derelict Logs Recovered 2 | . . 2 . . Drone Launches . | . . . . . Drone Recoveries . | . . . . . Exploration | -11 -10 -10 -9 -8 ------------- Run | Jun Mat Min Mat Mat Turns Passed 1728 | 84 667 264 506 207 Spaces Moved 1536 | 68 505 345 479 139 Core 22 | 1 . . . 21 Treads . | . . . . . Legs . | . . . . . Wheels 139 | 67 72 . . . Hover 1375 | . 433 345 479 118 Flight . | . . . . . Fastest Speed 42 | 50 56 56 56 42 Average Speed 61 | 88 68 56 56 54 Slowest Speed 116 | 95 116 56 56 100 Overloaded Moves . | . . . . . Propulsion Burnouts . | . . . . . Robots Hopped . | . . . . . Cave-ins Triggered . | . . . . . Exploration Rate (%) 39 | 5 80 56 39 19 Regions Visited 4 Branch Regions 1 Pre-discovered Areas . | . . . . . Known Exits Taken 2 | . . 1 1 . Unknown Exits Taken 2 | 1 1 . . . Scrap Searched 1 | . . 1 . . Spaces Dug 12 | . . 3 9 . Terrain Destroyed 134 | . 55 3 54 22 Melee . | . . . . . Projectile 15 | . . 3 12 . AOE 119 | . 55 . 42 22 Terrain Rammed . | . . . . . Walls Destroyed . | . . . . . Machines Disabled . | . . . . . Actions | -11 -10 -10 -9 -8 --------- Run | Jun Mat Min Mat Mat Total 2148 | 84 775 406 645 238 Wait 429 | . 205 51 113 60 Move 1532 | 67 504 344 478 139 Hop . | . . . . . Pick Up 30 | 8 12 1 5 4 Fast Attach 10 | 6 . 1 1 2 Attach 12 | 1 1 . 2 8 Detach 1 | . 1 . . . Swap 32 | . 12 3 10 7 Drop 19 | . 12 3 4 . Fire 75 | 2 28 3 25 17 Melee . | . . . . . Ram 1 | . . . . 1 Kick . | . . . . . Crush . | . . . . . Escape Stasis . | . . . . . Rewire 7 | . . . 7 . Trap . | . . . . . Miscellaneous . | . . . . . Route ------- -11/Junkyard -10/Materials (discovered 4 exits: *Mat x2 / [*Min x2]) -10/Mines (discovered 2 exits: *Mat x2) -9/Materials (discovered 2 exits: *Mat / Min) -8/Materials History --------- Turn | Location | Event 15 | -11/Junkyard | Discovered new exit (range 16) 85 | -11/Junkyard | Entered Materials 306 | -10/Materials | Discovered new exit (range 18) 331 | -10/Materials | Build established: Mutant 558 | -10/Materials | Discovered new exit (range 15) 594 | -10/Materials | Discovered new exit (range 15) 666 | -10/Materials | Discovered new exit (range 3) 752 | -10/Materials | Entered Mines 755 | -10/Mines | Received a Mining Laser from a helpful Derelict 758 | -10/Mines | Learned 2 Materials zone layouts 848 | -10/Mines | Identified exit to Materials 860 | -10/Mines | Discovered exit to Materials (range 6) 894 | -10/Mines | Assembled infested the area 899 | -10/Mines | Assisted by a Guerilla fighting off Assembled 1016 | -10/Mines | Entered Materials 1016 | -9/Materials | Evolved 2 slots: Utility x2 1017 | -9/Materials | Identified exit to Mines 1363 | -9/Materials | Discovered new exit (range 11) 1369 | -9/Materials | Identified exit to Materials 1522 | -9/Materials | Entered another Materials area 1522 | -8/Materials | Evolved 2 slots: Propulsion x2 1693 | -8/Materials | Core integrity fell below 50% 1714 | -8/Materials | Core integrity fell below 20% 1729 | -8/Materials | Destroyed by H-55 Commando with Gauss Rifle Last Messages --------------- 01701_ Aerolev Unit destroyed. 01703_ U-05 Engineer lays Concrete. 01703_ Slug penetrates Wall. 01704_ Wall collapses. 01704_ U-05 Engineer lays Concrete. 01705_ Critical hit (Burn: +37). 01706_ Penetrated by Slug. 01706_ Aerolev Unit destroyed. 01706_ Terminal disabled. 01707_ U-05 Engineer lays Concrete. 01709_ Slug penetrates Wall. 01710_ U-05 Engineer lays Concrete. 01720_ Slug penetrates G-47 Trooper. 01721_ K-01 Serf collects debris. 01723_ Slug penetrates Wall. 01724_ K-01 Serf destroyed. 01724_ K-01 Serf collects debris. 01724_ Sml. Storage Unit destroyed. 01727_ K-01 Serf collects debris. 01729_ Penetrated by Slug. Map ----- +----------------------------------------------------+ | ????# ! #"""### """ | | ????# ![! #####?# """ = | | ????# !![| #?????# """ | | ????# [% #?????# | | ????# #?????#! | | ????# #### ###?????# !! ! | | ????# ####+######### !! | | ????# # # | | ????# # """ """ ######### | | ????# # "R """ #???????? | | ????# + """ ! """ #???????? | | ????# ; #???????? | | ????# ##############???????? | | ???## ## ???????????? | | ???# # """"" #??????????? | | ???# # """"" #??????????? | | ???# h # """"" #??????????? | | ???# * + #??????????? | | ???# g%=# [#??????????? | | ???# kwg # ! !!! #??????????? | | ???# # !! #??????????? | | ???### ### !! = #??????????? | | ?????# #?##########??????????? | | ?????# #?????????????????????? | | ?????# #?????????????????????? | | ?????# @ #?????????????????????? | | ????# #????????????????????? | | ????# #????????????????????? | | ????# = +????????????????????? | | ????# #????????????????????? | | ????# #????????????????????? | | ????### ###????????????????????? | | ??????# #??????????????????????? | | ??????# #??????????????????????? | | ??????? ???????????????????????? | | ???????#???????????????????????? | | ???????????????????????????????? | | ???????????????????????????????? | | ???????????????????????????????? | | ???????????????????????????????? | | ???????????????????????????????? | | ???????????????????????????????? | | ???????????????????????????????? | | ???????????????????????????????? | | ???????????????????????????????? | | ???????????????????????????????? | | ???????????????????????????????? | | ???????????????????????????????? | | ???????????????????????????????? | | ???????????????????????????????? | +----------------------------------------------------+ Best States ------------- Heat Dissipation 31 Energy Generation 12 Energy Capacity 265 Matter Stores 300 Matter Capacity 300 Sight Range 18 Robot Scan Range 15 Terrain Scan Density 10 Evasion (%) 56 Targeting Accuracy 5 Item Schematics ----------------- None Robot Schematics ------------------ None Fabricated ------------ Nothing Alien Tech Used ----------------- None Achievements -------------- GoHome() Challenges ------------ None Game ------ Seed AntimissileResetAutohacker Manual? 0 Play Time 01:03:14 Cumulative 13.4 hours Start 2023.07.11 @ 12:50:40 End 2023.07.13 @ 08:01:43 Sessions 7 Manual Loads 0 Difficulty Rogue Special Mode None Game No. 4 Rogue 4 Adventurer 0 Explorer 0 Win Type - Total 0 Types 0/0/0/0/0/0/0/0/0 Lore% 6 Gallery% 13 Achievement% 17 Wizard Run 0 Options --------- ASCII 0 Keyboard 1 Movement Numpad Keybinds 0 Fullscreen 1 Font 18/X11 Map View 76x50 Tactical HUD 1 Map Filters NONE Filters NONE Steam 1 RUN: c0bb3412-b7e4-4f89-abcd-6654a61a6ec2